fUST/lending_fUST_20250407
["ID","MTS","AMOUNT","RATE_DAILY","PERIOD"]
[357262502,1743963366311,200.0,0.00024658,15]
[357262505,1743963635351,200.0,0.00027,120]
[357262506,1743963636280,200.0,0.000283,120]
[357262507,1743963636630,296.88634,0.000296,120]
[357262508,1743963703722,172.67699758,0.0003,10]
[357262510,1743963772096,153.9,0.000266,31]
[357262511,1743963772151,153.9,0.000266,31]
[357262512,1743963772215,153.9,0.000266,31]
[357262565,1743964132964,2310.17457721,0.000212,30]
[357262569,1743964136263,89776.80473684,0.00026,30]
[357262580,1743964180184,175.483146,0.00013699,2]
[357262624,1743964236134,-250.0,0.00021829,2]
[357262625,1743964236145,-240.267347,0.0002187,2]
[357262626,1743964236154,-555.449998,0.00022,2]
[357262627,1743964236165,-250.7104886,0.00022496,2]
[357262628,1743964236175,-737.2027109,0.00022669,2]
[357262629,1743964236185,-300.0,0.00022749,2]
[357262630,1743964236195,-24900.0,0.0002275,2]
[357262631,1743964236205,-318.95361338,0.00022989,2]
[357262632,1743964236216,-26902.00042945,0.0002299,2]
[357262633,1743964236232,-6657.24918073,0.0002299,2]
[357262634,1743964236242,-540.06963549,0.00022999,2]
[357262635,1743964236252,-500.0,0.00022999,2]
[357262636,1743964236262,-500.0,0.00022999,2]
[357262637,1743964236272,-500.0,0.00022999,2]
[357262638,1743964236281,-549.99999999,0.00022999,2]
[357262639,1743964236291,-500.0,0.00022999,2]
[357262640,1743964236302,-500.0,0.00022999,2]
[357262641,1743964236312,-500.0,0.00022999,2]
[357262642,1743964236322,-500.0,0.00022999,2]
[357262643,1743964236332,-500.0,0.00022999,2]
[357262645,1743964236342,-500.0,0.00022999,2]
[357262647,1743964236352,-500.0,0.00022999,2]
[357262648,1743964236362,-500.0,0.00022999,2]
[357262649,1743964236371,-500.0,0.00022999,2]
[357262650,1743964236384,-235.20180779,0.00022999,2]
[357262651,1743964236394,-500.0,0.00022999,2]
[357262652,1743964236404,-500.0,0.00022999,2]
[357262653,1743964236413,-500.0,0.00022999,2]
[357262654,1743964236423,-500.0,0.00022999,2]
[357262655,1743964236432,-500.0,0.00022999,2]
[357262656,1743964236441,-500.0,0.00022999,2]
[357262657,1743964236451,-500.0,0.00022999,2]
[357262658,1743964236462,-500.0,0.00022999,2]
[357262659,1743964236472,-500.0,0.00022999,2]
[357262660,1743964236482,-500.0,0.00022999,2]
[357262661,1743964236492,-500.0,0.00022999,2]
[357262662,1743964236502,-500.0,0.00022999,2]
[357262663,1743964236512,-500.0,0.00022999,2]
[357262664,1743964236522,-500.0,0.00022999,2]
[357262665,1743964236532,-500.0,0.00022999,2]
[357262666,1743964236746,-500.0,0.00022999,2]
[357262667,1743964236757,-500.0,0.00022999,2]
[357262668,1743964236768,-500.0,0.00022999,2]
[357262669,1743964236777,-500.0,0.00022999,2]
[357262670,1743964236788,-500.0,0.00022999,2]
[357262671,1743964236798,-500.0,0.00022999,2]
[357262672,1743964236808,-500.0,0.00022999,2]
[357262673,1743964236818,-500.0,0.00022999,2]
[357262674,1743964236829,-500.0,0.00022999,2]
[357262675,1743964236839,-500.0,0.00022999,2]
[357262676,1743964236849,-500.0,0.00022999,2]
[357262677,1743964236859,-500.0,0.00022999,2]
[357262678,1743964236869,-500.0,0.00022999,2]
[357262679,1743964236881,-500.0,0.00022999,2]
[357262680,1743964236892,-500.0,0.00022999,2]
[357262681,1743964236902,-500.0,0.00022999,2]
[357262682,1743964236912,-500.0,0.00022999,2]
[357262683,1743964236926,-500.0,0.00022999,2]
[357262684,1743964236936,-500.0,0.00022999,2]
[357262685,1743964236946,-500.0,0.00022999,2]
[357262686,1743964236956,-612.01463058,0.00022999,2]
[357262687,1743964236967,-13327.75157207,0.00023,2]
[357262688,1743964236980,-1200.88738729,0.00023,2]
[357262689,1743964236991,-290.61523386,0.00023082,2]
[357262718,1743964238202,-209.38476614,0.00023082,2]
[357262719,1743964238213,-5118.20316547,0.0002333,2]
[357262721,1743964238223,-341.03786763,0.00023559,2]
[357262723,1743964238234,-727.03,0.00023561,3]
[357262724,1743964238244,-363.51,0.00023561,3]
[357262725,1743964238254,-181.76,0.00023561,3]
[357262726,1743964238264,-545.3,0.00023561,3]
[357262727,1743964238275,-22863.04805101,0.00023571,2]
[357262728,1743964238285,-500.0,0.00023672,2]
[357262729,1743964238294,-500.0,0.00023673,2]
[357262730,1743964238304,-502.93513737,0.00023673,2]
[357262731,1743964238313,-501.58059009,0.00023673,2]
[357262732,1743964238323,-501.7591911,0.00023673,2]
[357262733,1743964238333,-500.0,0.00023673,2]
[357262734,1743964238342,-500.0,0.00023673,2]
[357262735,1743964238351,-500.0,0.00023673,2]
[357262736,1743964238362,-500.0,0.00023673,2]
[357262737,1743964238372,-500.0,0.00023673,2]
[357262738,1743964238392,-500.0,0.00023673,2]
[357262739,1743964238403,-500.0,0.00023673,2]
[357262741,1743964238413,-500.0,0.00023673,2]
[357262742,1743964238423,-500.0,0.00023673,2]
[357262743,1743964238433,-500.0,0.00023673,2]
[357262744,1743964238443,-500.0,0.00023673,2]
[357262745,1743964238452,-202.54013484,0.00023673,2]
[357262746,1743964238462,-500.0,0.00023673,2]
[357262747,1743964238474,-504.18953469,0.00023673,2]
[357262748,1743964238484,-500.0,0.00023673,2]
[357262749,1743964238494,-500.0,0.00023673,2]
[357262750,1743964238504,-500.0,0.00023673,2]
[357262751,1743964238514,-500.0,0.00023673,2]
[357262752,1743964238524,-500.0,0.00023673,2]
[357262753,1743964238534,-500.0,0.00023673,2]
[357262754,1743964238544,-500.0,0.00023673,2]
[357262755,1743964238555,-500.0,0.00023673,2]
[357262756,1743964238565,-500.0,0.00023673,2]
[357262757,1743964238575,-500.0,0.00023673,2]
[357262758,1743964238586,-209.16619909,0.00023673,2]
[357262759,1743964238596,-500.0,0.00023673,2]
[357262760,1743964238606,-500.0,0.00023673,2]
[357262761,1743964238616,-7116.50709515,0.00023673,2]
[357262762,1743964238629,-151.0,0.00023746,2]
[357262763,1743964238639,-151.0,0.00023746,2]
[357262764,1743964238650,-151.0,0.00023746,2]
[357262765,1743964238660,-151.0,0.00023746,2]
[357262766,1743964238670,-151.0,0.00023746,2]
[357262767,1743964238681,-151.0,0.00023746,2]
[357262768,1743964238692,-151.0,0.00023746,2]
[357262769,1743964238703,-151.0,0.00023746,2]
[357262770,1743964238714,-151.0,0.00023746,2]
[357262771,1743964238725,-151.0,0.00023746,2]
[357262772,1743964238736,-151.0,0.00023746,2]
[357262773,1743964238747,-151.0,0.00023746,2]
[357262774,1743964238758,-213.94699851,0.00023746,2]
[357262775,1743964238769,-200.0,0.0002376,2]
[357262776,1743964238780,-310287.44228374,0.00023761,2]
[357262777,1743964238794,-59712.55771626,0.00023761,2]
[357262778,1743964238804,-621.67086051,0.00023773,2]
[357262779,1743964238815,-270.89569603,0.00023773,2]
[357262780,1743964238826,-500.38580897,0.00023773,2]
[357262781,1743964238837,-500.0,0.00023773,2]
[357262782,1743964238848,-325.20877364,0.00023773,2]
[357262783,1743964238859,-500.0,0.00023773,2]
[357262784,1743964238870,-151.33222718,0.00023773,2]
[357262785,1743964238885,-500.0,0.00023773,2]
[357262786,1743964238896,-500.0,0.00023773,2]
[357262787,1743964238907,-500.0,0.00023773,2]
[357262788,1743964238918,-500.0,0.00023773,2]
[357262789,1743964238935,-399.99731134,0.00023773,2]
[357262790,1743964238951,-500.0,0.00023773,2]
[357262791,1743964238961,-538.130153,0.00023773,2]
[357262792,1743964238974,-500.0,0.00023773,2]
[357262793,1743964238984,-500.0,0.00023773,2]
[357262794,1743964238995,-500.0,0.00023773,2]
[357262795,1743964239006,-500.0,0.00023773,2]
[357262796,1743964239021,-500.0,0.00023773,2]
[357262797,1743964239032,-500.0,0.00023773,2]
[357262798,1743964239042,-500.0,0.00023807,2]
[357262799,1743964239052,-341.03786759,0.00023809,2]
[357262800,1743964239063,-50526.16030067,0.00023871,2]
[357262801,1743964239073,-500.0,0.00023873,2]
[357262802,1743964239083,-534.14480852,0.00023873,2]
[357262803,1743964239094,-500.0,0.00023873,2]
[357262804,1743964239105,-4631.05162862,0.000239,5]
[357262805,1743964239115,-349.45916597,0.00024,2]
[357262806,1743964239125,-874.63523237,0.00024,7]
[357262807,1743964239142,-341.03786759,0.00024059,2]
[357262808,1743964239153,-151.0,0.00024294,2]
[357262809,1743964239164,-341.03786759,0.00024308,2]
[357262810,1743964239175,-341.03786759,0.00024558,2]
[357262811,1743964239186,-500.0,0.00024658,2]
[357262812,1743964239197,-500.0,0.00024658,2]
[357262813,1743964239207,-500.0,0.00024658,2]
[357262814,1743964239218,-610.57347721,0.00024658,2]
[357262815,1743964239228,-500.0,0.00024658,2]
[357262816,1743964239238,-500.0,0.00024658,2]
[357262817,1743964239248,-500.0,0.00024658,2]
[357262818,1743964239259,-500.0,0.00024658,2]
[357262819,1743964239269,-500.0,0.00024658,2]
[357262820,1743964239279,-500.0,0.00024658,2]
[357262821,1743964239290,-500.0,0.00024658,2]
[357262822,1743964239301,-500.0,0.00024658,2]
[357262823,1743964239311,-500.0,0.00024658,2]
[357262824,1743964239322,-500.0,0.00024658,2]
[357262825,1743964239333,-500.0,0.00024658,2]
[357262826,1743964239343,-500.0,0.00024658,2]
[357262827,1743964239354,-4631.05162835,0.00024693,5]
[357262828,1743964239365,-420.0,0.00024702,2]
[357262829,1743964239375,-48820.5500916,0.000248,2]
[357262830,1743964239388,-3093.61223591,0.00024834,2]
[357262831,1743964239400,-267.8476599,0.00024842,2]
[357262832,1743964239414,-28478.6542201,0.0002489,2]
[357262833,1743964239432,-5141.21236052,0.00024899,2]
[357262834,1743964239455,-64076.7781376,0.00024899,2]
[357262835,1743964239469,-6879.18949582,0.00024899,2]
[357262836,1743964239481,-73008.55738429,0.00024899,2]
[357262837,1743964239491,-61208.50215314,0.000249,3]
[357262838,1743964239502,-168693.04107607,0.000249,3]
[357262839,1743964239512,-160.0,0.000249,3]
[357262840,1743964239525,-12525.30748765,0.000249,3]
[357262841,1743964239535,-319958.916971,0.000249,2]
[357262842,1743964239545,-1454.06,0.00024931,3]
[357262843,1743964239555,-727.02,0.00024931,3]
[357262844,1743964239566,-363.52,0.00024931,3]
[357262845,1743964239578,-254.0,0.00025,2]
[357262846,1743964239588,-1206.273585,0.00025,2]
[357262847,1743964239601,-157.926232,0.00025005,2]
[357262848,1743964239611,-200.0,0.00025129,2]
[357262849,1743964239621,-500.0,0.00025418,2]
[357262850,1743964239633,-4631.05162835,0.00025486,6]
[357262851,1743964239643,-160.0,0.0002567,2]
[357262853,1743964239653,-160.0,0.0002567,2]
[357262855,1743964239663,-719.782386,0.00026,2]
[357262856,1743964239672,-40572.15815363,0.00026,30]
[357262857,1743964239685,-32588.5888214,0.00026,30]
[357262858,1743964239697,-12525.30748765,0.00026,30]
[357262860,1743964239707,-500.0,0.000261,2]
[357262861,1743964239717,-500.0,0.000262,2]
[357262862,1743964239728,-4631.05162835,0.00026279,6]
[357262863,1743964239738,-500.0,0.000263,2]
[357262864,1743964239749,-912.217439,0.000264,2]
[357262865,1743964239759,-500.0,0.000264,2]
[357262866,1743964239770,-200.0,0.00026499,2]
[357262868,1743964239780,-500.0,0.000265,2]
[357262869,1743964239791,-500.0,0.000265,2]
[357262870,1743964239802,-500.0,0.000266,2]
[357262871,1743964239812,-500.0,0.000266,2]
[357262872,1743964239823,-500.0,0.000267,2]
[357262874,1743964239833,-500.0,0.000267,2]
[357262876,1743964239843,-500.0,0.000268,2]
[357262877,1743964239853,-500.0,0.000268,2]
[357262878,1743964239864,-587.0,0.00026822,2]
[357262879,1743964239874,-500.0,0.000269,2]
[357262880,1743964239889,-500.0,0.000269,2]
[357262882,1743964239900,-4068.3791743,0.00026964,2]
[357262883,1743964239911,-262.72398466,0.00026973,2]
[357262884,1743964239922,-12500.0,0.00026974,3]
[357262885,1743964239935,-419.28457398,0.00026974,3]
[357262886,1743964239946,-12500.0,0.00026982,3]
[357262888,1743964239956,-12500.0,0.00026991,3]
[357262889,1743964239966,-12500.0,0.00027,3]
[357262891,1743964239978,-849.23283574,0.00027,3]
[357262894,1743964239988,-500.0,0.00027,2]
[357262897,1743964239997,-500.0,0.00027,2]
[357262900,1743964240008,-3357.5144595,0.00027,2]
[357262901,1743964240018,-4631.05162835,0.00027072,7]
[357262902,1743964240028,-500.0,0.000271,2]
[357262903,1743964240037,-500.0,0.000271,2]
[357262904,1743964240047,-500.0,0.000272,2]
[357262905,1743964240057,-500.0,0.000273,2]
[357262906,1743964240067,-213.493956,0.00027397,120]
[357262907,1743964240077,-300.0,0.00027397,5]
[357262908,1743964240087,-500.0,0.00027397,5]
[357262909,1743964240097,-7442.29189872,0.00027397,5]
[357262910,1743964240108,-500.0,0.000274,2]
[357262911,1743964240118,-500.0,0.000275,2]
[357262912,1743964240131,-500.0,0.00027568,2]
[357262914,1743964240141,-500.0,0.000276,2]
[357262915,1743964240151,-500.0,0.000277,2]
[357262916,1743964240162,-4631.05162835,0.00027866,7]
[357262917,1743964240172,-160.0,0.00027866,7]
[357262918,1743964240183,-12525.30748765,0.00027866,7]
[357262919,1743964240193,-200.0,0.00027869,2]
[357262920,1743964240203,-4631.05162835,0.00028659,8]
[357262921,1743964240213,-427.28313656,0.00028879,2]
[357262922,1743964240223,-11314.86575895,0.00029,7]
[357262923,1743964240233,-11314.86575895,0.00029,7]
[357262925,1743964240244,-419.28457398,0.00029,7]
[357262927,1743964240254,-823.0,0.00029125,2]
[357262928,1743964240264,-1000.0,0.00029152,5]
[357262929,1743964240274,-1000.0,0.00029152,5]
[357262930,1743964240284,-1000.0,0.00029152,5]
[357262931,1743964240294,-1002.21148346,0.00029152,5]
[357262932,1743964240304,-1078.09641296,0.00029152,5]
[357262934,1743964240314,-1043.94367697,0.00029152,5]
[357262936,1743964240325,-478.84499412,0.00029152,5]
[357262937,1743964240334,-183.67877057,0.00029152,5]
[357262938,1743964240344,-504.11579989,0.00029152,5]
[357262939,1743964240353,-500.0,0.00029152,5]
[357262940,1743964240363,-1000.0,0.00029152,5]
[357262942,1743964240372,-509.20542168,0.00029152,5]
[357262944,1743964240387,-1012.95706276,0.00029152,5]
[357262946,1743964240397,-500.0,0.00029152,5]
[357262948,1743964240406,-1000.0,0.00029152,5]
[357262949,1743964240416,-1000.0,0.00029152,2]
[357262950,1743964240426,-500.0,0.00029152,5]
[357262952,1743964240436,-500.0,0.00029152,5]
[357262953,1743964240446,-1000.0,0.00029152,5]
[357262954,1743964240457,-503.36734113,0.00029152,5]
[357262955,1743964240467,-1000.0,0.00029152,5]
[357262956,1743964240477,-200.0,0.00029239,2]
[357262957,1743964240488,-1000.0,0.00029252,5]
[357262958,1743964240498,-500.0,0.00029252,5]
[357262959,1743964240508,-500.0,0.00029252,5]
[357262960,1743964240519,-1000.0,0.00029252,5]
[357262961,1743964240529,-1000.0,0.00029252,5]
[357262962,1743964240539,-500.0,0.00029252,5]
[357262963,1743964240550,-500.0,0.00029252,5]
[357262964,1743964240560,-1000.0,0.00029252,5]
[357262965,1743964240570,-1000.0,0.00029252,5]
[357262966,1743964240581,-500.0,0.00029252,5]
[357262967,1743964240591,-4631.05162835,0.00029452,8]
[357262968,1743964240601,-252.0,0.0003,2]
[357262969,1743964240611,-4245.77194529,0.0003,4]
[357262971,1743964240621,-933.06745951,0.0003,2]
[357262972,1743964240634,-700.35207309,0.00030178,2]
[357262973,1743964240644,-4631.05162835,0.00030245,9]
[357262974,1743964240654,-200.0,0.00030609,2]
[357262975,1743964240665,-765.33,0.000307,2]
[357262977,1743964240675,-160.0,0.00030866,2]
[357262978,1743964240686,-205584.83211488,0.00030987,2]
[357262979,1743964240696,-151.0,0.00030987,7]
[357262980,1743964240707,-1719.0,0.00031,2]
[357262981,1743964240717,-4631.05162835,0.00031038,9]
[357262982,1743964240727,-153.9,0.000313,31]
[357262983,1743964240738,-153.9,0.000313,31]
[357262984,1743964240748,-153.9,0.000313,31]
[357262985,1743964240759,-153.9,0.000313,31]
[357262986,1743964240769,-153.9,0.000313,31]
[357262987,1743964240779,-153.9,0.000313,31]
[357262988,1743964240790,-1152.0,0.00031624,2]
[357262990,1743964240802,-4631.05162835,0.00031831,10]
[357262991,1743964240812,-213.493956,0.00031963,120]
[357262992,1743964240823,-200.0,0.00031979,2]
[357262993,1743964240834,-4631.05162835,0.00032624,10]
[357262994,1743964240844,-419.28457398,0.000327,10]
[357262995,1743964240854,-1000.0,0.00032877,5]
[357262996,1743964240864,-500.0,0.00033231,7]
[357262997,1743964240874,-200.0,0.00033349,2]
[357262998,1743964240887,-4631.05162835,0.00033417,11]
[357262999,1743964240897,-542.0,0.00033551,2]
[357263000,1743964240909,-1478.0,0.00033551,2]
[357263001,1743964240919,-2254.0,0.00033551,2]
[357263002,1743964240931,-401.0,0.00033551,2]
[357263003,1743964240945,-151.1,0.00033551,2]
[357263004,1743964240955,-500.0,0.00033619,7]
[357263005,1743964240967,-582.452,0.00033642,30]
[357263006,1743964240977,-201.75659287,0.00034006,10]
[357263007,1743964240988,-4631.05162835,0.0003421,11]
[357263008,1743964240997,-1335.0,0.00034339,2]
[357263009,1743964241007,-310.16,0.00034718,2]
[357263010,1743964241019,-4631.05162835,0.00035003,12]
[357263011,1743964241031,-500.0,0.0003565,7]
[357263012,1743964241042,-4631.05162835,0.00035797,12]
[357263013,1743964241053,-1000.0,0.0003589,2]
[357263014,1743964241063,-420.47256183,0.00035972,5]
[357263015,1743964241073,-178.18700459,0.00036,30]
[357263016,1743964241083,-153.9,0.000361,31]
[357263018,1743964241094,-153.9,0.000361,31]
[357263020,1743964241105,-153.9,0.000361,31]
[357263022,1743964241115,-153.9,0.000361,31]
[357263024,1743964241125,-153.9,0.000361,31]
[357263026,1743964241139,-153.9,0.000361,31]
[357263028,1743964241150,-8382.4689001,0.000362,98]
[357263029,1743964241160,-8382.46890006,0.000362,98]
[357263042,1743964241331,-8382.46890006,0.000362,98]
[357263044,1743964241341,-213.493956,0.0003653,120]
[357263045,1743964241351,-542.0,0.00036551,2]
[357263047,1743964241361,-1478.0,0.00036551,2]
[357263049,1743964241372,-2254.0,0.00036551,2]
[357263050,1743964241384,-401.0,0.00036551,2]
[357263052,1743964241394,-4631.05162835,0.0003659,13]
[357263054,1743964241404,-1001.7867608,0.00037058,15]
[357263055,1743964241414,-4631.05162835,0.00037383,13]
[357263057,1743964241426,-685.553,0.00037933,50]
[357263059,1743964241436,-170.91,0.00037933,50]
[357263061,1743964241445,-4631.05162835,0.00038176,14]
[357263063,1743964241455,-166.0,0.00038356,2]
[357263065,1743964241465,-1500.0,0.00038356,5]
[357263066,1743964241475,-4631.05162835,0.00038969,14]
[357263068,1743964241484,-1747.88875037,0.00039,120]
[357263070,1743964241495,-1500.0,0.00039171,5]
[357263071,1743964241504,-503.86829957,0.00039171,5]
[357263072,1743964241514,-1000.0,0.00039171,5]
[357263073,1743964241524,-1500.0,0.00039171,5]
[357263074,1743964241534,-1500.0,0.00039171,2]
[357263075,1743964241544,-1500.0,0.00039171,5]
[357263076,1743964241554,-1500.0,0.00039171,5]
[357263077,1743964241563,-1500.0,0.00039271,5]
[357263078,1743964241574,-1500.0,0.00039271,5]
[357263079,1743964241584,-1500.0,0.00039271,5]
[357263080,1743964241593,-542.0,0.00039551,2]
[357263081,1743964241603,-1478.0,0.00039551,2]
[357263082,1743964241612,-548.362,0.00039551,2]
[357263083,1743964241622,-401.0,0.00039551,2]
[357263084,1743964241635,-249.187258,0.00039762,2]
[357263085,1743964241645,-249.187258,0.00039762,2]
[357263086,1743964241654,-151.0,0.00039762,14]
[357263087,1743964241664,-151.0,0.00039762,14]
[357263088,1743964241674,-441.845092,0.00039762,14]
[357263089,1743964241684,-162.812981,0.00039762,14]
[357263090,1743964241694,-162.812981,0.00039762,14]
[357263091,1743964241704,-4631.05162835,0.00039762,15]
[357263092,1743964241714,-500.0,0.00039973,5]
[357263093,1743964241723,-500.0,0.00039973,5]
[357263094,1743964241733,-850.15991958,0.0004,60]
[357263095,1743964241743,-193271.90276817,0.0004,120]
[357263096,1743964241753,-151.0,0.0004,14]
[357263097,1743964241763,-151.0,0.0004,14]
[357263098,1743964241774,-151.0,0.0004,14]
[357263099,1743964241785,-151.0,0.0004,14]
[357263100,1743964241795,-151.0,0.0004,14]
[357263101,1743964241805,-151.524379,0.0004,14]
[357263102,1743964241814,-151.0,0.0004,14]
[357263103,1743964241824,-151.0,0.0004,14]
[357263104,1743964241835,-151.0,0.0004,14]
[357263105,1743964241845,-151.0,0.0004,14]
[357263106,1743964241855,-151.0,0.0004,14]
[357263107,1743964241865,-193.504639,0.0004,14]
[357263108,1743964241876,-151.0,0.0004,14]
[357263109,1743964241893,-217.853708,0.0004,14]
[357263110,1743964241904,-217.853708,0.0004,14]
[357263111,1743964241914,-368.487247,0.0004,14]
[357263112,1743964241928,-368.487247,0.0004,14]
[357263113,1743964241939,-151.0,0.0004,14]
[357263114,1743964241949,-151.0,0.0004,14]
[357263115,1743964241960,-151.0,0.0004,14]
[357263116,1743964241970,-631.0,0.0004,2]
[357263117,1743964241980,-407.022466,0.0004,14]
[357263118,1743964241990,-407.022466,0.0004,14]
[357263119,1743964242000,-151.0,0.0004,14]
[357263120,1743964242009,-151.0,0.0004,14]
[357263121,1743964242020,-453.731806,0.0004,14]
[357263122,1743964242031,-453.731806,0.0004,14]
[357263123,1743964242041,-192.371154,0.0004,14]
[357263124,1743964242051,-192.371154,0.0004,14]
[357263125,1743964242060,-151.0,0.0004,14]
[357263126,1743964242070,-12845.63204014,0.0004,120]
[357263127,1743964242080,-151.0,0.0004,14]
[357263128,1743964242091,-89461.35278225,0.0004,30]
[357263129,1743964242101,-419.28457398,0.0004,120]
[357263130,1743964242111,-305.962811,0.0004,14]
[357263131,1743964242120,-305.962811,0.0004,14]
[357263132,1743964242136,-151.0,0.0004,14]
[357263133,1743964242146,-151.0,0.0004,14]
[357263134,1743964242156,-12525.30748765,0.0004,120]
[357263135,1743964242166,-151.0,0.0004,14]
[357263136,1743964242176,-8382.46890006,0.00040352,120]
[357263137,1743964242185,-4631.05162835,0.00040555,15]
[357263138,1743964242195,-153.9,0.000408,31]
[357263139,1743964242204,-153.9,0.000408,31]
[357263140,1743964242214,-153.9,0.000408,31]
[357263141,1743964242223,-153.9,0.000408,31]
[357263142,1743964242233,-153.9,0.000408,31]
[357263143,1743964242243,-153.9,0.000408,31]
[357263144,1743964242252,-150.5,0.0004107,30]
[357263145,1743964242262,-150.5,0.0004108,30]
[357263146,1743964242271,-150.5,0.0004109,30]
[357263147,1743964242281,-167.43551359,0.00041096,2]
[357263148,1743964242290,-213.493956,0.00041096,120]
[357263149,1743964242299,-1000.0,0.00041211,120]
[357263150,1743964242309,-313.1687486,0.00041309,30]
[357263151,1743964242318,-153.0,0.00041309,30]
[357263152,1743964242328,-563.9791657,0.00041309,30]
[357263153,1743964242337,-156.135844,0.00041309,30]
[357263154,1743964242347,-307.455993,0.00041309,30]
[357263155,1743964242357,-213.2113689,0.00041309,30]
[357263156,1743964242366,-1062.9056475,0.00041309,30]
[357263157,1743964242375,-563.9791657,0.00041309,30]
[357263158,1743964242388,-4631.05162835,0.00041348,16]
[357263159,1743964242398,-500.0,0.00041377,30]
[357263160,1743964242407,-1505.2648116,0.0004167,4]
[357263161,1743964242417,-500.0,0.00041737,30]
[357263162,1743964242426,-2296.01,0.000419,7]
[357263163,1743964242436,-563.9791657,0.00042131,30]
[357263164,1743964242445,-154.9408827,0.00042131,30]
[357263165,1743964242455,-153.0,0.00042131,30]
[357263166,1743964242464,-153.0,0.00042131,30]
[357263167,1743964242473,-307.3075616,0.00042131,30]
[357263168,1743964242483,-4631.05162835,0.00042141,17]
[357263169,1743964242492,-1279.54086893,0.00042151,120]
[357263170,1743964242503,-419.28457398,0.00042193,2]
[357263171,1743964242513,-12525.30748765,0.00042193,2]
[357263172,1743964242524,-729.16666667,0.00042193,2]
[357263173,1743964242534,-1279.54086893,0.00042251,120]
[357263174,1743964242545,-1279.54086893,0.00042351,120]
[357263175,1743964242554,-1500.0,0.000424,40]
[357263176,1743964242564,-800.0,0.00042415,14]
[357263177,1743964242575,-1279.54086893,0.00042451,120]
[357263178,1743964242585,-151.0,0.00042455,120]
[357263179,1743964242595,-151.0,0.00042455,120]
[357263180,1743964242605,-157.926232,0.00042471,10]
[357263181,1743964242616,-500.0,0.00042473,30]
[357263182,1743964242628,-542.0,0.00042551,2]
[357263183,1743964242640,-1478.0,0.00042551,2]
[357263184,1743964242650,-401.0,0.00042551,2]
[357263185,1743964242660,-1279.54086893,0.00042551,120]
[357263186,1743964242670,-357.0,0.00042566,14]
[357263187,1743964242679,-175.56794436,0.00042566,14]
[357263188,1743964242689,-323.56009542,0.00042566,14]
[357263189,1743964242699,-1279.54086893,0.00042651,120]
[357263191,1743964242709,-5000.0,0.000427,2]
[357263193,1743964242718,-800.0,0.00042705,14]
[357263195,1743964242727,-800.0,0.00042727,14]
[357263196,1743964242737,-1279.54086893,0.00042751,120]
[357263198,1743964242747,-800.0,0.0004276,14]
[357263200,1743964242758,-800.0,0.00042767,14]
[357263201,1743964242768,-800.0,0.00042793,14]
[357263202,1743964242779,-187.6,0.0004282,14]
[357263203,1743964242789,-151.0,0.00042836,120]
[357263204,1743964242799,-151.0,0.00042836,120]
[357263205,1743964242810,-151.0,0.00042836,120]
[357263206,1743964242820,-151.493971,0.00042836,120]
[357263207,1743964242830,-1220.591925,0.00042836,120]
[357263208,1743964242841,-1220.591925,0.00042836,120]